bitfinex-derivatives/quotes_ETHF0:USTF0_20241228
["timestamp","ask_amount","ask_price","bid_price","bid_amount"]
[1735400831556,3.9961,3374.8,3374.4,40.8]
[1735400831856,0.29684,3374.7,3374.6,0.29684]
[1735400832761,3.2078,3374.8,3374.7,0.29684]
[1735400833264,3.50463,3374.8,3374.7,0.29684]
[1735400833462,3.2078,3374.8,3374.7,0.29684]
[1735400833660,0.29681,3375.1,3375.0,0.29681]
[1735400834057,1.97403702,3375.2,3375.1,0.2968]
[1735400834664,1.67723702,3375.2,3374.8,0.7842]
[1735400834962,0.29682,3375.1,3375.0,0.2968]
[1735400835867,1.67723702,3375.2,3374.8,0.7842]
[1735400836063,0.29682,3375.0,3374.9,0.29681]
[1735400836759,0.29682,3375.0,3374.7,0.29683]
[1735400836760,0.29684,3374.8,3374.7,0.29683]
[1735400836969,0.2968,3375.1,3374.9,0.29682]
[1735400837163,1.97403702,3375.2,3375.1,0.2968]
[1735400838668,0.29681,3375.1,3375.0,0.2968]
[1735400839173,0.74201,3375.1,3374.6,3.21054589]
[1735400839367,0.29684,3374.7,3374.6,3.50738589]
[1735400840461,0.29684,3374.7,3374.6,3.21054589]
[1735400841359,0.29684,3374.7,3374.6,0.00274589]
[1735400844165,0.53654281,3374.7,3374.6,0.00274589]
[1735400844664,0.23970281,3374.7,3373.7,40.8]
[1735400844966,0.29691,3374.0,3373.9,0.2969]
[1735400845169,0.29689,3374.1,3374.0,0.29689]
[1735400845365,1.67723702,3374.2,3374.1,0.29689]
[1735400845570,0.29687,3374.4,3374.3,0.29687]
[1735400845766,1.67723702,3374.5,3373.9,3.2078]
[1735400845962,1.67723702,3374.5,3374.4,0.29686]
[1735400846761,2.76366702,3374.8,3374.4,0.8132]
[1735400846966,2.76366702,3374.8,3374.7,0.29684]
[1735400847367,2.32547249,3375.0,3374.6,0.74211]
[1735400847568,2.32547249,3375.0,3374.9,0.29682]
[1735400847770,2.62228249,3375.0,3374.9,0.29682]
[1735400848068,2.32547249,3375.0,3374.9,0.29682]
[1735400848575,1.67723702,3375.4,3374.9,0.29682]
[1735400848576,4.00270951,3375.4,3374.9,3.2078]
[1735400848767,4.00270951,3375.4,3375.3,0.29678]
[1735400849363,4.29947951,3375.4,3375.3,0.29678]
[1735400849971,1.97400702,3375.4,3375.3,0.29678]
[1735400850269,2.32547249,3375.8,3375.3,3.2078]
[1735400850472,2.32547249,3375.8,3375.7,0.29675]
[1735400851271,1.97397702,3375.9,3375.4,0.7379]
[1735400851572,0.29677,3375.5,3375.4,1.03467]
[1735400851778,1.67723702,3375.6,3375.5,0.29677]
[1735400852776,1.97399702,3375.6,3375.5,0.29677]
[1735400853972,0.29677,3375.5,3375.4,1.03467]
[1735400854173,0.29677,3375.5,3375.4,0.01454946]
[1735400854370,1.84627,3375.5,3375.4,0.01454946]
[1735400854570,5.85277,3375.5,3375.4,0.01454946]
[1735400855379,5.85277,3375.5,3374.8,4.64709846]
[1735400855380,1.97405702,3374.9,3374.8,4.64709846]
[1735400855574,1.67723702,3374.9,3374.4,5.40479846]
[1735400855773,0.29684,3374.8,3374.7,0.29683]
[1735400856174,0.29685,3374.6,3374.5,0.29685]
[1735400856374,0.29684,3374.7,3374.6,0.29684]
[1735400857272,0.29683,3374.8,3374.7,0.29683]
[1735400857773,0.29685,3374.7,3374.6,0.29684]
[1735400858881,0.29683,3374.8,3374.7,0.29683]
[1735400859776,1.67723702,3374.9,3374.4,0.7577]
[1735400859980,0.29681,3375.0,3374.4,1.49985]
[1735400860181,0.29681,3375.0,3374.9,0.29682]
[1735400860774,0.29681,3375.0,3374.9,41.09682]
[1735400861579,0.29681,3375.0,3374.9,0.29682]
[1735400862182,2.62228249,3375.0,3374.9,0.29682]
[1735400863474,0.29681,3375.0,3374.9,0.29682]
[1735400864875,2.32547249,3375.0,3374.5,40.8]
[1735400865072,0.29685,3374.5,3374.4,1.05455]
[1735400865482,2.34353702,3374.8,3374.4,0.7577]
[1735400865669,0.29685,3374.6,3374.5,0.29684]
[1735400865980,0.29684,3374.7,3374.6,0.29684]
[1735400866692,3.31129249,3374.9,3374.8,0.29683]
[1735400867185,0.98582,3374.9,3374.8,0.29683]
[1735400868082,2.32547249,3375.0,3374.4,1.49986]
[1735400868385,2.62229249,3375.0,3374.9,0.29682]
[1735400869277,0.29683,3374.9,3374.8,0.29682]
[1735400869684,0.29683,3374.9,3374.8,0.29683]
[1735400872678,2.62230249,3374.9,3374.8,0.29683]
[1735400873473,0.29684,3374.8,3374.7,0.29683]
[1735400873876,1.67723702,3374.8,3374.4,0.7577]
[1735400874078,0.29686,3374.4,3374.3,7.85489846]
[1735400874284,0.29686,3374.4,3374.3,8.15176846]
[1735400875595,0.29686,3374.4,3374.3,3.50467]
[1735400882890,0.29686,3374.4,3374.3,0.29687]
[1735400883991,4.00270951,3374.5,3374.0,44.6725]
[1735400884285,1.97412702,3374.1,3374.0,4.1694]
[1735400884688,1.97412702,3374.1,3374.0,44.9694]
[1735400885087,1.97412702,3374.1,3374.0,40.8]
[1735400885292,1.97412702,3374.1,3374.0,41.0969]
[1735400885589,1.97412702,3374.1,3374.0,40.8]
[1735400886590,0.2969,3374.0,3373.9,0.9839]
[1735400887285,3.2078,3374.3,3374.2,0.29688]
[1735400887487,4.00270951,3374.4,3374.3,0.29687]
[1735400887488,3.49102573,3374.4,3374.3,0.29687]
[1735400887794,3.49102573,3374.4,3374.3,41.09687]
[1735400888194,3.49102573,3374.4,3374.3,44.30467]
[1735400889083,1.67723702,3374.7,3374.6,0.29685]
[1735400889985,2.32688334,3374.8,3374.4,2.1418]
[1735400890181,2.32688334,3374.8,3374.7,3.50464]
[1735400890589,2.32688334,3374.8,3374.7,3.87578242]
[1735400890794,2.32688334,3375.0,3374.9,0.29682]
[1735400891997,0.29679,3375.2,3375.1,0.2968]
[1735400892295,1.97402702,3375.3,3375.2,0.29679]
[1735400892493,0.2968,3375.2,3375.1,0.2968]
[1735400892794,0.29683,3374.9,3374.8,0.29682]
[1735400892989,1.97406702,3374.9,3374.8,0.29682]
[1735400894591,4.00412036,3374.9,3374.8,0.29682]
[1735400894796,2.32688334,3374.9,3374.8,0.29682]
[1735400895995,5.00131036,3375.2,3375.1,0.2968]
[1735400896690,4.30091036,3375.2,3375.1,0.2968]
[1735400897088,4.30091036,3375.2,3375.1,0.01449969]
[1735400897397,7.50871036,3375.2,3375.1,0.01449969]
[1735400897690,5.83147334,3375.2,3375.1,0.01449969]
[1735400898294,7.47809357,3375.2,3375.1,0.01449969]
[1735400901097,7.47809357,3375.2,3374.5,40.8]
[1735400901098,7.18130357,3375.2,3374.5,40.8]
[1735400901295,0.29685,3374.6,3374.5,41.09685]
[1735400902696,3.79060335,3374.6,3374.5,41.09685]
[1735400903090,3.79060335,3374.6,3374.2,3.2078]
[1735400903091,3.49375335,3374.6,3374.2,3.2078]
[1735400903304,1.97410702,3374.3,3374.2,3.2078]
[1735400903696,5.46786037,3374.3,3374.2,3.2078]
[1735400906404,0.29687,3374.3,3374.2,3.50467]
[1735400906897,3.49375335,3374.4,3374.2,3.50467]
[1735400906898,3.49375335,3374.4,3374.3,0.29687]
[1735400907101,2.38845335,3374.4,3374.3,41.09687]
[1735400907410,4.65833781,3374.6,3374.5,0.29685]
[1735400908203,4.65833781,3374.6,3374.5,41.09685]
[1735400909211,0.29683,3374.8,3374.7,0.29684]
[1735400909498,0.29685,3374.6,3374.5,40.8]
[1735400909697,0.29685,3374.6,3374.4,4.64709846]
[1735400909698,0.29685,3374.5,3374.4,4.64709846]
[1735400909905,0.96405,3374.5,3374.4,4.64709846]
[1735400910399,0.29687,3374.3,3374.2,3.2078]
[1735400911806,2.62540925,3374.3,3374.2,3.2078]
[1735400912001,4.30264627,3374.3,3374.2,3.2078]
[1735400912206,0.29691,3373.9,3373.8,4.64709846]
[1735400912403,1.97414702,3373.9,3373.8,4.64709846]
[1735400913303,0.29692,3373.7,3373.6,0.29693]
[1735400913705,4.00577627,3373.9,3373.4,4.64709846]
[1735400913706,2.32853925,3373.9,3373.4,4.64709846]
[1735400914006,2.62544925,3373.9,3373.8,0.29692]
[1735400914710,2.62544925,3373.9,3373.8,41.09692]
[1735400914905,2.32853925,3373.9,3373.8,41.09692]
[1735400915408,4.65833781,3374.2,3373.8,46.83082]
[1735400915603,2.41599116,3374.2,3374.1,3.50469]
[1735400915804,2.41599116,3374.2,3374.1,3.87588665]
[1735400916303,2.41599116,3374.2,3374.1,3.50469]
[1735400916609,0.29687,3374.5,3374.4,0.29685]
[1735400917710,0.29687,3374.4,3374.3,0.29686]
[1735400918703,0.6666,3374.5,3374.1,3.2078]
[1735400918904,0.29688,3374.2,3374.1,3.2078]
[1735400919208,0.29689,3374.1,3374.0,4.64709846]
[1735400919407,1.66399,3374.1,3374.0,4.64709846]
[1735400920013,0.29692,3373.9,3373.8,0.29691]
[1735400924314,0.29692,3373.9,3373.8,41.09691]
[1735400926018,0.29692,3373.9,3373.8,41.1114446]
[1735400928916,1.3671,3374.1,3373.8,40.8145346]
[1735400929117,0.2969,3374.0,3373.9,0.3114346]
[1735400931517,1.66399,3374.1,3374.0,0.2969]
[1735400932114,1.66399,3374.1,3374.0,0.3114346]
[1735400934312,1.66399,3374.1,3374.0,0.0145346]
[1735400934615,1.66399,3374.1,3374.0,0.3114346]
[1735400935315,1.66399,3374.1,3374.0,0.0145346]
[1735400935509,0.29692,3373.8,3373.7,0.29692]
[1735400939815,0.6699,3374.0,3373.6,40.8]
[1735400940016,0.29691,3373.9,3373.8,0.29691]
[1735400940610,0.6699,3374.0,3373.8,0.29691]
[1735400940812,0.6699,3374.0,3373.9,0.29691]
[1735400941115,5.82292226,3374.6,3374.5,0.29685]
[1735400941516,5.82292226,3374.8,3374.4,3.2078]
[1735400941721,5.82292226,3374.8,3374.7,0.29684]
[1735400942017,5.82292226,3374.8,3374.7,41.09684]
[1735400943214,0.98302,3374.9,3374.8,0.29683]
[1735400943416,0.29683,3374.8,3374.7,4.64709846]
[1735400943615,0.29683,3374.8,3374.7,4.94393846]
[1735400944317,0.29683,3374.8,3374.7,0.29684]
[1735400945326,0.29685,3374.5,3374.4,3.2078]
[1735400945518,0.29686,3374.4,3374.3,4.64709846]
[1735400945723,1.67776,3374.4,3374.3,6.95087417]
[1735400945923,1.3809,3374.4,3374.3,6.95087417]
[1735400946218,1.67776,3374.4,3374.3,7.24774417]
[1735400946916,1.67776,3374.4,3374.3,0.29687]
[1735400948221,1.3809,3374.4,3374.0,7.87083258]
[1735400948427,0.29689,3374.2,3374.1,0.29689]
[1735400949021,0.29689,3374.1,3374.0,4.95993258]
[1735400949221,0.29689,3374.1,3374.0,4.66303258]
[1735400949427,5.60283702,3374.3,3373.9,4.66303258]
[1735400949625,0.2969,3374.0,3373.9,4.66303258]
[1735400950323,1.97413702,3374.0,3373.9,3.55603258]
[1735400950524,1.97413702,3374.0,3373.7,6.95087417]
[1735400950525,1.67723702,3374.0,3373.7,6.95087417]
[1735400950718,0.29692,3373.8,3373.7,6.95087417]
[1735400951031,0.29694,3373.5,3373.4,41.09695]
[1735400951626,0.29693,3373.7,3373.6,0.29692]
[1735400954030,0.29694,3373.6,3373.5,0.29693]
[1735400954231,0.99274,3373.6,3373.5,0.29693]
[1735400954422,0.7324,3373.8,3373.4,40.8]
[1735400954624,0.29693,3373.7,3373.6,0.29692]
[1735400955327,0.7324,3373.8,3373.4,40.8]
[1735400955638,0.7095,3374.1,3373.5,3.2078]
[1735400955826,3.2078,3374.3,3374.1,0.29689]
[1735400955827,5.62581113,3374.2,3374.1,0.29689]
[1735400956422,5.32892113,3374.2,3374.1,41.09689]
[1735400956632,5.62580113,3374.2,3374.1,41.09689]
[1735400956935,4.65792113,3374.2,3374.1,41.09689]
[1735400957434,6.35348113,3374.5,3374.4,0.29686]
[1735400957630,7.02038113,3374.5,3374.4,0.29686]
[1735400958335,5.99582113,3374.5,3374.4,0.29686]
[1735400958632,1.3379,3374.5,3374.4,0.29686]
[1735400959041,1.63475,3374.5,3374.4,0.29686]
[1735400959238,1.3379,3374.5,3374.1,40.8]
[1735400959437,1.3379,3374.5,3374.1,0.29689]
[1735400959438,0.29689,3374.2,3374.1,0.29689]
[1735400959641,0.29689,3374.1,3374.0,3.50468]
[1735400960238,1.3379,3374.5,3374.0,3.2078]
[1735400960441,0.29688,3374.3,3374.2,0.29687]
[1735400961047,0.29687,3374.4,3374.3,0.29686]
[1735400962842,1.3379,3374.5,3374.0,3.2078]
[1735400963347,0.29689,3374.1,3374.0,3.50469]
[1735400963737,0.29689,3374.1,3374.0,0.29689]
[1735400966042,1.63476,3374.5,3374.4,0.29686]
[1735400966241,1.3379,3374.5,3374.4,0.29686]
[1735400966643,1.3379,3374.5,3374.4,41.09686]
[1735400967141,4.65792113,3374.6,3374.5,0.29685]
[1735400967846,3.03203702,3375.2,3374.5,0.74214]
[1735400968042,1.3548,3375.2,3375.1,0.2968]
[1735400969044,3.2078,3375.5,3374.9,0.7073]
[1735400969245,3.2078,3375.5,3375.4,0.29677]
[1735400969246,3.50457,3375.5,3375.4,0.29677]
[1735400969443,3.2078,3375.5,3375.4,0.29677]
[1735400969947,3.50457,3375.5,3375.4,0.29677]
[1735400970142,3.2078,3375.5,3375.0,0.6935]
[1735400970341,0.29678,3375.4,3375.3,0.29678]
[1735400972748,3.2078,3375.5,3375.0,0.6935]
[1735400972950,0.2968,3375.3,3375.2,0.29679]
[1735400974443,0.29681,3375.1,3375.0,0.2968]
[1735400975655,0.99501,3375.1,3375.0,0.2968]
[1735400979056,0.6982,3375.1,3375.0,0.2968]
[1735400979756,0.6858,3375.2,3375.0,3.2078]
[1735400979954,0.29678,3375.4,3375.3,0.29678]
[1735400980454,0.29678,3375.4,3375.3,41.09678]
[1735400982456,0.29678,3375.4,3375.3,0.29678]
[1735400985152,0.29675,3375.8,3375.7,0.29674]
[1735400985451,8.37843376,3375.9,3375.8,0.29674]
[1735400985654,3.48779376,3375.9,3375.8,0.29674]
[1735400985857,3.48779376,3376.0,3375.9,0.29673]
[1735400986057,3.48779376,3376.0,3375.9,0.99073]
[1735400986855,3.78451376,3376.0,3375.9,0.99073]
[1735400987156,0.29673,3375.9,3375.8,40.8]
[1735400987358,0.98843,3375.9,3375.8,40.8]
[1735400987948,0.98843,3375.9,3375.5,3.50456]
[1735400987949,0.29676,3375.6,3375.5,3.50456]
[1735400988149,0.29676,3375.6,3375.5,3.50457]
[1735400988759,0.6917,3375.9,3375.5,3.2078]
[1735400988961,0.29676,3375.7,3375.6,0.29674]
[1735400989665,0.6917,3375.9,3375.8,0.29674]
[1735400989666,0.98844,3375.9,3375.8,0.29674]
[1735400989864,4.64134,3375.9,3375.1,44.0078]
[1735400990160,0.29679,3375.3,3375.2,0.29678]
[1735400991058,1.4001,3375.5,3375.1,44.0078]
[1735400991259,0.97719,3375.2,3375.1,44.3046]
[1735400992564,0.97719,3375.2,3375.1,44.0078]
[1735400994066,0.97719,3375.2,3375.1,44.3046]
[1735400995263,1.4001,3375.5,3375.1,44.0078]
[1735400995461,1.4001,3375.5,3375.4,0.29677]
[1735400995462,0.7058,3375.5,3375.4,0.29677]
[1735400995769,1.00257,3375.5,3375.4,0.29677]
[1735400996065,0.7058,3375.5,3375.4,0.29677]
[1735400996468,1.00257,3375.5,3375.4,0.29677]
[1735400996667,0.29679,3375.3,3375.2,0.29678]
[1735400997060,0.7058,3375.5,3375.1,44.0078]
[1735400997360,0.29678,3375.4,3375.3,0.29677]
[1735400999463,3.2078,3375.4,3375.1,40.8]
[1735400999669,0.29679,3375.2,3375.1,41.09679]
[1735401002669,0.29679,3375.2,3375.1,40.8]
[1735401005079,0.29679,3375.2,3375.1,41.0968]
[1735401008065,0.29684,3374.8,3374.7,0.29682]
[1735401008483,0.29684,3374.7,3374.6,3.50464]
[1735401008776,0.29684,3374.7,3374.6,40.8]
[1735401009480,0.29684,3374.7,3374.6,41.09685]
[1735401009675,0.29684,3374.7,3374.6,40.8]
[1735401009879,0.29684,3374.7,3374.6,41.09685]
[1735401012772,0.29684,3374.7,3374.6,40.8]
[1735401013074,0.29688,3374.2,3374.1,7.2884131]
[1735401013470,0.29688,3374.2,3374.1,48.0884131]
[1735401015086,0.29688,3374.2,3374.1,41.09688]
[1735401019277,2.1753,3374.4,3374.1,41.09688]
[1735401019477,3.48779376,3374.7,3374.1,40.8]
[1735401019785,0.29686,3374.5,3374.4,0.29685]
[1735401019986,0.29688,3374.3,3374.2,0.29687]
[1735401020281,0.29688,3374.3,3374.0,3.9435]
[1735401020282,0.29689,3374.2,3374.1,0.29689]
[1735401020479,0.29689,3374.2,3374.1,41.09689]
[1735401020982,0.29689,3374.2,3374.1,0.29689]
[1735401021979,0.2969,3374.0,3373.9,40.8]
[1735401022181,0.29692,3373.7,3373.6,3.2078]
[1735401022882,0.29694,3373.5,3373.4,48.0884831]
[1735401023287,0.7295,3373.6,3373.4,47.7915331]
[1735401023483,1.02644,3373.6,3373.5,0.29694]
[1735401023885,0.7295,3373.6,3373.5,0.29694]
[1735401024087,0.29692,3373.8,3373.7,0.29692]
[1735401027694,0.29693,3373.7,3373.6,0.29693]
[1735401028092,0.685,3373.9,3373.4,44.0078]
[1735401028093,0.29694,3373.5,3373.4,40.8]
[1735401030595,0.29694,3373.5,3373.4,41.09695]
[1735401031188,0.29694,3373.5,3373.4,0.29695]
[1735401031389,1.67723702,3373.8,3373.0,3.2078]
[1735401031685,0.29694,3373.6,3373.5,0.29693]
[1735401032595,0.29694,3373.5,3373.4,40.8]
[1735401032795,0.29696,3373.3,3373.2,0.29696]
[1735401033190,0.29696,3373.3,3373.2,41.09696]
[1735401037594,0.29698,3373.2,3373.1,0.29696]
[1735401042701,0.29698,3373.2,3372.9,3.50479]
[1735401042702,0.29699,3373.0,3372.9,3.50479]
[1735401042893,0.29699,3373.0,3372.9,3.2078]
[1735401043402,0.29699,3373.0,3372.3,0.74262]
[1735401043403,0.29706,3372.2,3372.1,0.29706]
[1735401043603,0.29706,3372.2,3372.1,0.29707]
[1735401044105,0.29709,3371.8,3371.7,6.9915331]
[1735401044497,0.29709,3371.8,3371.7,48.0886331]
[1735401044693,0.29709,3371.8,3371.7,47.7915331]
[1735401044898,1.97432702,3371.8,3371.7,47.7915331]
[1735401045098,1.97432702,3371.8,3371.7,6.9915331]
[1735401046002,1.97432702,3371.8,3371.3,3.2078]
[1735401046003,1.67723702,3371.8,3371.3,3.2078]
[1735401046199,0.29713,3371.4,3371.3,3.50494]
[1735401046397,0.29713,3371.4,3371.3,44.30494]
[1735401046599,0.6456,3371.7,3371.4,0.29712]
[1735401046600,0.29712,3371.5,3371.4,0.29712]
[1735401046901,0.6456,3371.7,3371.4,0.29712]
[1735401047103,0.29711,3371.6,3371.4,0.29712]
[1735401047604,0.94271,3371.7,3371.6,0.29711]
[1735401047799,1.67723702,3371.8,3371.3,3.2078]
[1735401048100,6.26673702,3372.1,3371.3,8.2078]
[1735401048304,3.2078,3372.1,3372.0,0.29707]
[1735401048797,3.22885418,3372.1,3372.0,0.29707]
[1735401048997,3.22885418,3372.1,3372.0,41.09707]
[1735401049398,4.9060912,3372.1,3372.0,41.09707]
[1735401049601,5.2031612,3372.1,3372.0,40.8]
[1735401049807,4.9060912,3372.1,3372.0,41.09707]
[1735401051206,5.2031612,3372.1,3372.0,41.09707]
[1735401053803,5.2031612,3372.1,3372.0,40.8]
[1735401054008,1.9953612,3372.1,3372.0,40.8]
[1735401055507,0.29708,3371.9,3371.8,0.29709]
[1735401055702,0.02105418,3371.9,3371.5,0.7125]
[1735401055904,0.29711,3371.7,3371.6,41.0971]
[1735401056815,0.31816418,3371.7,3371.6,41.0971]
[1735401057511,0.31815418,3371.7,3371.6,0.2971]
[1735401057711,1.67605418,3371.7,3371.6,0.2971]
[1735401058214,1.67605418,3371.7,3371.6,41.0971]
[1735401058612,1.67605418,3371.7,3371.6,40.8]
[1735401058807,1.37895418,3371.7,3371.3,0.29713]
[1735401059012,0.29713,3371.4,3371.3,0.29713]
[1735401059310,0.29713,3371.4,3371.3,41.09713]
[1735401059813,0.31818418,3371.4,3371.3,41.09713]
[1735401062016,0.31818418,3371.4,3371.3,40.8]
[1735401062215,0.29714,3371.3,3371.2,0.29714]
[1735401062517,0.29716,3371.2,3371.1,0.29715]
[1735401062813,0.29716,3371.2,3371.1,41.09715]
[1735401062814,0.31821418,3371.2,3371.1,41.09715]
[1735401064709,6.9954512,3371.2,3371.1,40.8]
[1735401064905,9.57652822,3371.2,3370.0,10.1993331]
[1735401065109,1.67723702,3370.1,3370.0,7.2887831]
[1735401065309,1.67723702,3370.4,3370.3,0.29722]
[1735401065507,3.2078,3370.6,3370.5,0.29721]
[1735401065910,3.22885418,3370.6,3370.5,0.29721]
[1735401066512,3.22885418,3370.6,3370.5,41.09721]
[1735401068817,0.02105418,3370.6,3370.5,41.09721]
[1735401069015,0.02105418,3370.6,3370.5,41.74701]
[1735401069416,0.02105418,3370.6,3370.5,41.09721]
[1735401069714,0.02105418,3370.6,3370.1,0.6957]
[1735401069715,0.29722,3370.4,3370.1,0.6957]
[1735401069920,1.97445702,3370.4,3370.3,0.27616582]
[1735401071818,1.97445702,3370.4,3370.2,40.8]
[1735401071819,0.29722,3370.3,3370.2,41.09723]
[1735401072015,0.98572,3370.3,3370.2,41.09723]
[1735401072622,0.6885,3370.3,3370.2,41.09723]
[1735401072815,1.67723702,3370.4,3370.2,40.8]
[1735401073015,1.67723702,3370.4,3370.3,0.29722]
[1735401073309,2.66292702,3370.7,3370.6,0.2972]
[1735401073516,2.36573702,3370.7,3370.6,0.2972]
[1735401074318,2.66292702,3370.7,3370.6,0.2972]
[1735401075421,0.29721,3370.6,3370.5,0.2972]
[1735401077323,0.99891,3370.6,3370.5,0.2972]
[1735401078927,1.67723702,3370.7,3351.6,2.95722905]
[1735401079121,0.29721,3370.5,3370.4,0.29721]
[1735401079323,0.29723,3370.3,3370.2,0.29722]
[1735401079926,0.29723,3370.3,3370.2,41.09722]
[1735401081331,0.29723,3370.3,3370.2,40.8]
[1735401081523,0.29724,3370.1,3370.0,3.50505]
[1735401082735,0.29724,3370.1,3370.0,3.2078]
[1735401082924,0.29724,3370.1,3370.0,3.50505]
[1735401083124,0.29724,3370.1,3370.0,3.2078]
[1735401083427,1.97447702,3370.1,3370.0,3.2078]
[1735401083629,1.97447702,3370.1,3370.0,3.50505]
[1735401083830,1.97447702,3370.1,3370.0,0.29725]
[1735401084029,0.29726,3370.0,3369.9,0.29725]
[1735401084226,0.29727,3369.9,3369.8,0.29726]
[1735401085132,0.29728,3369.8,3369.7,0.29727]
[1735401085332,0.6722,3370.0,3369.6,40.8]
[1735401085333,0.29728,3369.7,3369.6,40.8]
[1735401085827,0.29728,3369.7,3369.6,41.09729]
[1735401087026,0.29727,3369.8,3369.7,0.29727]
[1735401087229,3.9127,3370.3,3369.7,0.7432]
[1735401087426,0.7049,3370.3,3369.9,3.2078]
[1735401087625,1.67723702,3370.4,3370.3,0.29722]
[1735401087826,1.67723702,3370.4,3370.3,3.50502]
[1735401088033,3.09183702,3370.7,3370.3,44.0078]
[1735401088332,0.29721,3370.6,3370.5,0.2972]
[1735401089337,1.97442702,3370.7,3370.6,0.2972]
[1735401090136,1.67723702,3371.3,3370.3,44.0078]
[1735401090336,0.29716,3371.2,3371.1,0.29714]
[1735401091123,1.67723702,3371.3,3370.9,0.6952]
[1735401091327,1.97437702,3371.3,3371.2,0.29714]
[1735401091526,1.67723702,3371.3,3371.2,0.29714]
[1735401091727,2.31627011,3371.5,3371.4,0.29713]
[1735401091935,5.85534702,3371.6,3371.5,0.29712]
[1735401092132,1.67723702,3371.6,3371.5,0.29712]
[1735401092632,1.01151,3371.7,3371.4,40.8]
[1735401092835,0.29711,3371.7,3371.6,0.29711]
[1735401094440,2.40003702,3371.9,3371.8,0.29709]
[1735401095038,1.3927,3372.1,3371.6,3.2078]
[1735401095235,2.31627011,3372.2,3372.1,0.29707]
[1735401096038,6.69559376,3372.4,3372.3,0.29705]
[1735401096039,3.50484,3372.4,3372.3,0.29705]
[1735401096235,0.29705,3372.3,3372.1,0.29706]
[1735401096436,0.29706,3372.2,3372.1,0.29706]
[1735401096638,3.2078,3372.4,3371.7,1.45464]
[1735401096936,0.29705,3372.3,3372.2,0.29705]
[1735401097234,3.2078,3372.4,3372.3,0.29705]
[1735401097438,3.2078,3372.4,3372.3,41.09705]
[1735401104646,1.00762,3372.7,3372.6,0.29702]
[1735401105443,0.7106,3372.7,3372.6,0.29702]
[1735401105642,1.00761,3372.7,3372.6,0.29702]
[1735401105844,0.7106,3372.7,3372.6,0.29702]
[1735401106239,0.51639,3372.9,3372.6,3.2078]
[1735401106439,0.51639,3372.9,3372.8,0.297]
[1735401113643,0.51639,3372.9,3372.8,41.097]
[1735401113847,3.2078,3373.4,3373.3,0.29696]
[1735401114045,1.3759,3373.6,3373.0,3.95025]
[1735401114247,1.67723702,3373.5,3373.0,3.2078]
[1735401114449,0.29698,3373.1,3373.0,3.50478]
[1735401115751,0.29698,3373.1,3373.0,3.2078]
[1735401115953,0.29698,3373.1,3373.0,3.50479]
[1735401116850,0.29698,3373.1,3372.8,40.8]
[1735401116851,0.29699,3372.9,3372.8,40.8]
[1735401117647,1.97422702,3372.9,3372.8,40.8]
[1735401117959,0.29703,3372.5,3372.4,3.50483]
[1735401118254,1.67723702,3372.9,3372.4,44.0078]
[1735401118453,1.67723702,3372.9,3372.6,0.29701]
[1735401118454,0.29702,3372.7,3372.6,0.29701]
[1735401119951,0.29703,3372.6,3372.5,0.29702]
[1735401120146,0.29703,3372.5,3372.4,41.09703]
[1735401120353,0.29706,3372.2,3372.1,0.29705]
[1735401120855,0.29706,3372.2,3372.1,41.09705]
[1735401121752,0.29706,3372.2,3372.1,40.8]
[1735401122249,1.67723702,3372.3,3371.8,0.29709]
[1735401122453,0.29712,3371.5,3371.4,0.29712]
[1735401122652,0.29714,3371.4,3371.3,0.29713]
[1735401122853,0.96614,3371.4,3371.3,41.09713]
[1735401123057,2.34623702,3371.4,3370.7,8.14692364]
[1735401123260,0.29718,3370.8,3370.7,4.64194364]
[1735401123452,0.29718,3370.8,3370.7,4.93913364]
[1735401123654,1.00117,3371.0,3370.9,0.29717]
[1735401124660,0.704,3371.0,3370.9,0.29717]
[1735401124858,1.00116,3371.0,3370.9,0.29717]
[1735401126162,0.669,3371.4,3371.3,0.29714]
[1735401126660,0.669,3371.4,3371.3,41.09714]
[1735401127155,0.96613,3371.4,3371.3,41.09714]
[1735401127560,0.96613,3371.4,3371.3,40.8]
[1735401128355,0.96613,3371.4,3371.3,41.09714]
[1735401128955,0.669,3371.4,3371.3,41.09714]
[1735401129464,3.2078,3371.9,3371.3,40.8]
[1735401129760,4.88239,3371.9,3371.8,0.29709]
[1735401129963,0.2971,3371.7,3371.6,0.2971]
[1735401131364,0.2971,3371.7,3371.4,3.2078]
[1735401131365,0.29712,3371.5,3371.4,3.50492]
[1735401132057,0.29711,3371.6,3371.5,0.29711]
[1735401132463,0.29712,3371.5,3371.4,3.50492]
[1735401133461,0.29713,3371.4,3371.3,40.8]
[1735401133665,1.00163,3371.4,3371.3,40.8]
[1735401137069,0.29712,3371.5,3371.4,0.29713]
[1735401140664,0.29711,3371.7,3371.6,0.2971]
[1735401141562,4.5853,3371.9,3371.4,0.6944]
[1735401141758,0.2971,3371.8,3371.7,0.29709]
[1735401142162,4.88239,3371.9,3371.8,0.29709]
[1735401144867,0.29711,3371.7,3371.6,0.2971]
[1735401145467,4.5853,3371.9,3371.3,40.8]
[1735401145671,0.29712,3371.6,3371.5,0.29711]
[1735401147864,4.5853,3371.9,3371.3,40.8]
[1735401148069,0.29711,3371.7,3371.6,0.2971]
[1735401149472,4.5853,3371.9,3371.5,0.29711]
[1735401149473,0.29712,3371.6,3371.5,0.29711]
[1735401150076,5.32803,3371.9,3371.3,40.8]
[1735401150372,0.29713,3371.5,3371.4,0.29712]
[1735401151470,0.7115,3371.6,3371.3,40.8]
[1735401151768,0.97863,3371.4,3371.3,40.8]
[1735401151976,0.29718,3370.9,3370.8,0.29717]
[1735401152477,0.29718,3370.9,3370.8,41.09717]
[1735401152981,0.29718,3370.9,3370.8,40.8]